[Event "Early-Titled-Tuesday-Blitz-October-17-2023"]
[Site "Chess.com"]
[Date "2023.10.17"]
[Round "5"]
[White "JuniorJumper"]
[Black "UK_23"]
[Result "1-0"]
[WhiteElo "2565"]
[BlackElo "2422"]
[TimeControl "180+1"]
[EndTime "8:58:59 PDT"]
[Termination "JuniorJumper won by resignation"]

1. d4 {[%clk 0:02:58.2]} 1... d5 {[%clk 0:03:00.1]} 2. c4 {[%clk 0:02:56.8]}
2... e6 {[%clk 0:03:00.7]} 3. Nc3 {[%clk 0:02:56.6]} 3... Nf6 {[%clk 0:03:01.4]}
4. cxd5 {[%clk 0:02:56.9]} 4... exd5 {[%clk 0:03:02.3]} 5. Bg5 {[%clk
0:02:57.3]} 5... Be7 {[%clk 0:03:02.9]} 6. e3 {[%clk 0:02:57.9]} 6... O-O {[%clk
0:03:03.6]} 7. Qc2 {[%clk 0:02:58.6]} 7... Re8 {[%clk 0:03:03.8]} 8. Bd3 {[%clk
0:02:59.2]} 8... h6 {[%clk 0:03:03.8]} 9. Bh4 {[%clk 0:02:59.7]} 9... c5 {[%clk
0:03:04.5]} 10. dxc5 {[%clk 0:02:59]} 10... Nc6 {[%clk 0:03:00.2]} 11. Nge2
{[%clk 0:02:58.9]} 11... d4 {[%clk 0:02:49.3]} 12. O-O-O {[%clk 0:02:15.3]}
12... dxc3 {[%clk 0:02:47.5]} 13. Bh7+ {[%clk 0:02:14.3]} 13... Nxh7 {[%clk
0:02:47]} 14. Rxd8 {[%clk 0:02:14.7]} 14... Rxd8 {[%clk 0:02:27.6]} 15. Bxe7
{[%clk 0:02:12]} 15... cxb2+ {[%clk 0:02:27.7]} 16. Qxb2 {[%clk 0:02:08.4]}
16... Nxe7 {[%clk 0:02:28.6]} 17. Nf4 {[%clk 0:01:59.2]} 17... Nf6 {[%clk
0:02:26.9]} 18. Rd1 {[%clk 0:01:54.7]} 18... Rxd1+ {[%clk 0:02:22]} 19. Kxd1
{[%clk 0:01:55.6]} 19... Bg4+ {[%clk 0:02:20.2]} 20. f3 {[%clk 0:01:56.3]} 20...
Rd8+ {[%clk 0:02:20.4]} 21. Ke2 {[%clk 0:01:54.8]} 21... Bc8 {[%clk 0:02:20.9]}
22. h4 {[%clk 0:01:34]} 22... Ned5 {[%clk 0:02:20.4]} 23. Nd3 {[%clk 0:01:31.4]}
23... Re8 {[%clk 0:02:04.1]} 24. e4 {[%clk 0:01:30.8]} 24... Nc7 {[%clk
0:01:57.5]} 25. Kf2 {[%clk 0:01:26.3]} 25... Ne6 {[%clk 0:01:57.1]} 26. Qa3
{[%clk 0:01:22.2]} 26... a6 {[%clk 0:01:56.3]} 27. Qa4 {[%clk 0:01:22.6]} 27...
Bd7 {[%clk 0:01:52.6]} 28. Qb4 {[%clk 0:01:22]} 28... Bb5 {[%clk 0:01:52.6]} 29.
Nb2 {[%clk 0:01:10.9]} 29... Nd7 {[%clk 0:01:39.7]} 30. a4 {[%clk 0:01:09.4]}
30... Bc6 {[%clk 0:01:39.9]} 31. Nd3 {[%clk 0:01:07.9]} 31... Rd8 {[%clk
0:01:35.5]} 32. Ke3 {[%clk 0:01:07.6]} 32... f6 {[%clk 0:01:34.6]} 33. Qb3
{[%clk 0:01:05.3]} 33... Kf7 {[%clk 0:01:34.6]} 34. Qb4 {[%clk 0:00:47]} 34...
Ne5 {[%clk 0:01:28.3]} 35. Nf2 {[%clk 0:00:41.2]} 35... Rd4 {[%clk 0:01:23.6]}
36. Qb3 {[%clk 0:00:36.5]} 36... Rxa4 {[%clk 0:01:12.4]} 37. Qd1 {[%clk
0:00:23.8]} 37... Rd4 {[%clk 0:01:06.9]} 38. Qa1 {[%clk 0:00:22.3]} 38... Bb5
{[%clk 0:00:59.4]} 39. f4 {[%clk 0:00:18.9]} 39... Nc4+ {[%clk 0:00:55]} 40. Kf3
{[%clk 0:00:19.5]} 40... Rd2 {[%clk 0:00:42.4]} 41. Qc3 {[%clk 0:00:14.4]} 41...
Nd4+ {[%clk 0:00:32]} 42. Kg4 {[%clk 0:00:08.7]} 42... Rxf2 {[%clk 0:00:20.4]}
43. Qxd4 {[%clk 0:00:07.5]} 43... Rxg2+ {[%clk 0:00:21]} 44. Kf3 {[%clk
0:00:06.4]} 44... Rd2 {[%clk 0:00:21.9]} 45. Qa1 {[%clk 0:00:04.5]} 45... Rd3+
{[%clk 0:00:21.6]} 46. Kf2 {[%clk 0:00:04.3]} 46... h5 {[%clk 0:00:21.8]} 47.
Qh1 {[%clk 0:00:02.9]} 47... Rd2+ {[%clk 0:00:21.6]} 48. Kg3 {[%clk 0:00:02.4]}
48... Bc6 {[%clk 0:00:22]} 49. Qa1 {[%clk 0:00:01.9]} 49... Bxe4 {[%clk
0:00:18.9]} 50. Qa4 {[%clk 0:00:02.5]} 50... Rd3+ {[%clk 0:00:16.9]} 51. Kf2
{[%clk 0:00:02.9]} 51... Rf3+ {[%clk 0:00:15.8]} 52. Ke1 {[%clk 0:00:02.7]}
52... Bd5 {[%clk 0:00:16.3]} 53. Qd7+ {[%clk 0:00:02.4]} 53... Kg6 {[%clk
0:00:17]} 54. Qxd5 {[%clk 0:00:03.3]} 54... Rc3 {[%clk 0:00:14.3]} 55. Qe4+
{[%clk 0:00:03.3]} 55... Kf7 {[%clk 0:00:13.2]} 56. Qxb7+ {[%clk 0:00:03.8]}
56... Kg6 {[%clk 0:00:13]} 57. c6 {[%clk 0:00:04.7]} 57... Nd6 {[%clk
0:00:11.2]} 58. Qb1+ {[%clk 0:00:04.9]} 58... f5 {[%clk 0:00:11.1]} 59. Qb6
{[%clk 0:00:04.7]} 59... Ne4 {[%clk 0:00:11.2]} 60. c7+ {[%clk 0:00:04.8]} 60...
Nf6 {[%clk 0:00:10.3]} 61. Qb7 {[%clk 0:00:04]} 61... Re3+ {[%clk 0:00:10.4]}
62. Kf2 {[%clk 0:00:04.3]} 62... Ng4+ {[%clk 0:00:09.9]} 63. Kf1 {[%clk
0:00:05]} 63... Rf3+ {[%clk 0:00:10.1]} 64. Qxf3 {[%clk 0:00:05.1]} 64... Nh2+
{[%clk 0:00:09.6]} 65. Kg2 {[%clk 0:00:05.8]} 65... Nxf3 {[%clk 0:00:10.5]} 66.
Kxf3 {[%clk 0:00:06.7]} 1-0

[Event "Early-Titled-Tuesday-Blitz-October-17-2023"]
[Site "Chess.com"]
[Date "2023.10.17"]
[Round "5"]
[White "bazar-wokzal"]
[Black "santosalberto1987"]
[Result "1-0"]
[WhiteElo "2569"]
[BlackElo "2435"]
[TimeControl "180+1"]
[EndTime "8:59:02 PDT"]
[Termination "bazar-wokzal won by resignation"]

1. e4 {[%clk 0:03:00.9]} 1... e6 {[%clk 0:02:59.9]} 2. c4 {[%clk 0:03:00.1]}
2... d5 {[%clk 0:03:00.1]} 3. cxd5 {[%clk 0:03:00.5]} 3... exd5 {[%clk 0:03:01]}
4. Qb3 {[%clk 0:03:00.7]} 4... dxe4 {[%clk 0:02:47.5]} 5. Bc4 {[%clk 0:03:00.1]}
5... Qe7 {[%clk 0:02:47.4]} 6. Nc3 {[%clk 0:02:59.5]} 6... Nf6 {[%clk
0:02:40.8]} 7. d3 {[%clk 0:02:59]} 7... exd3+ {[%clk 0:02:36.1]} 8. Be3 {[%clk
0:02:57.8]} 8... g6 {[%clk 0:02:26.3]} 9. O-O-O {[%clk 0:02:56.1]} 9... Bg7
{[%clk 0:02:26.5]} 10. Bg5 {[%clk 0:02:40.5]} 10... O-O {[%clk 0:02:25.3]} 11.
Nf3 {[%clk 0:02:36.9]} 11... Nc6 {[%clk 0:02:06.1]} 12. Rhe1 {[%clk 0:02:30.8]}
12... Qc5 {[%clk 0:02:05.2]} 13. Bxf6 {[%clk 0:02:24.8]} 13... Na5 {[%clk
0:01:37.4]} 14. Qb5 {[%clk 0:01:50.5]} 14... Qxb5 {[%clk 0:01:36.8]} 15. Bxb5
{[%clk 0:01:46]} 15... Bxf6 {[%clk 0:01:36.1]} 16. Rxd3 {[%clk 0:01:45.7]} 16...
Bf5 {[%clk 0:01:35.1]} 17. Rd5 {[%clk 0:01:38.5]} 17... c6 {[%clk 0:01:30.5]}
18. Rxf5 {[%clk 0:01:38.2]} 18... gxf5 {[%clk 0:01:29.5]} 19. Bd3 {[%clk
0:01:38.4]} 19... Rfe8 {[%clk 0:01:24.7]} 20. Rxe8+ {[%clk 0:01:29.5]} 20...
Rxe8 {[%clk 0:01:24.5]} 21. Bxf5 {[%clk 0:01:29.8]} 21... Nc4 {[%clk 0:01:23]}
22. Ne4 {[%clk 0:01:27.6]} 22... Bxb2+ {[%clk 0:01:21.8]} 23. Kc2 {[%clk
0:01:27.4]} 23... Bg7 {[%clk 0:01:20.4]} 24. Nc5 {[%clk 0:01:15.1]} 24... b5
{[%clk 0:01:14.3]} 25. a4 {[%clk 0:01:05]} 25... Re2+ {[%clk 0:01:12.8]} 26. Kd3
{[%clk 0:01:04.7]} 26... Rxf2 {[%clk 0:01:07.9]} 27. Bd7 {[%clk 0:01:01.5]}
27... Rd2+ {[%clk 0:01:06.1]} 28. Nxd2 {[%clk 0:01:01.2]} 28... Nxd2 {[%clk
0:01:05.6]} 29. Kxd2 {[%clk 0:01:00.2]} 29... bxa4 {[%clk 0:01:05.6]} 30. Nxa4
{[%clk 0:00:58.1]} 30... Bd4 {[%clk 0:01:03.8]} 31. Bxc6 {[%clk 0:00:57.3]}
31... Kg7 {[%clk 0:01:04.1]} 32. Kd3 {[%clk 0:00:57.6]} 32... Bg1 {[%clk
0:01:04]} 33. h3 {[%clk 0:00:57.4]} 33... Kg6 {[%clk 0:01:02.9]} 34. Ke4 {[%clk
0:00:57.1]} 34... Kg5 {[%clk 0:01:02.9]} 35. Kf3 {[%clk 0:00:56.2]} 35... Bd4
{[%clk 0:01:02]} 36. Be8 {[%clk 0:00:54.8]} 36... f5 {[%clk 0:01:01.6]} 37. g3
{[%clk 0:00:52.8]} 37... Kf6 {[%clk 0:00:56]} 38. Bd7 {[%clk 0:00:51.8]} 38...
Kg5 {[%clk 0:00:56]} 39. Bb5 {[%clk 0:00:51.5]} 39... Kf6 {[%clk 0:00:55.8]} 40.
Bd3 {[%clk 0:00:51.6]} 40... Kg5 {[%clk 0:00:55.9]} 41. Bc2 {[%clk 0:00:48.2]}
41... h6 {[%clk 0:00:56.1]} 42. Ke2 {[%clk 0:00:43.7]} 42... h5 {[%clk
0:00:55.2]} 43. Bd1 {[%clk 0:00:40.5]} 43... h4 {[%clk 0:00:54.2]} 44. Kf3
{[%clk 0:00:40.1]} 44... hxg3 {[%clk 0:00:52.4]} 45. Kxg3 {[%clk 0:00:40.1]}
45... Kh6 {[%clk 0:00:50.6]} 46. Kf4 {[%clk 0:00:39.7]} 46... Kg6 {[%clk
0:00:49.5]} 47. Bc2 {[%clk 0:00:39.9]} 47... Kh5 {[%clk 0:00:49.8]} 48. Bxf5
{[%clk 0:00:38.4]} 48... Kh6 {[%clk 0:00:50.1]} 49. Ke4 {[%clk 0:00:37.5]} 49...
Bb6 {[%clk 0:00:44.8]} 50. Nc3 {[%clk 0:00:35.5]} 50... a5 {[%clk 0:00:44.3]}
51. Bd7 {[%clk 0:00:35.1]} 51... Bc7 {[%clk 0:00:43.1]} 52. Nd5 {[%clk
0:00:34.9]} 52... Bd8 {[%clk 0:00:43.3]} 53. Kf5 {[%clk 0:00:35]} 53... Kh5
{[%clk 0:00:43.2]} 54. Kf4 {[%clk 0:00:32.2]} 54... Kh4 {[%clk 0:00:43.3]} 55.
Kf3 {[%clk 0:00:31.4]} 55... a4 {[%clk 0:00:41.6]} 56. Ne3 {[%clk 0:00:23]}
56... a3 {[%clk 0:00:41.3]} 57. Ng2+ {[%clk 0:00:23.1]} 57... Kh5 {[%clk
0:00:40.7]} 58. Be6 {[%clk 0:00:22.9]} 58... Bc7 {[%clk 0:00:39.1]} 59. Ba2
{[%clk 0:00:22.5]} 59... Bb8 {[%clk 0:00:38.7]} 60. Ne3 {[%clk 0:00:22.4]} 60...
Kh4 {[%clk 0:00:38.6]} 61. Kg2 {[%clk 0:00:22.8]} 61... Ba7 {[%clk 0:00:37]} 62.
Nf5+ {[%clk 0:00:22.3]} 62... Kg5 {[%clk 0:00:37.1]} 63. Nd6 {[%clk 0:00:22.6]}
63... Kh4 {[%clk 0:00:34.9]} 64. Nf5+ {[%clk 0:00:19.7]} 64... Kg5 {[%clk
0:00:35]} 65. Ng3 {[%clk 0:00:17.3]} 65... Kh4 {[%clk 0:00:34.7]} 66. Nf1 {[%clk
0:00:17.6]} 66... Bc5 {[%clk 0:00:33.9]} 67. Nd2 {[%clk 0:00:17.8]} 67... Bd6
{[%clk 0:00:32]} 68. Nf3+ {[%clk 0:00:17.7]} 68... Kh5 {[%clk 0:00:31.7]} 69.
Bf7+ {[%clk 0:00:17]} 69... Kh6 {[%clk 0:00:31.5]} 70. h4 {[%clk 0:00:17.2]}
70... Kg7 {[%clk 0:00:29.2]} 71. Ba2 {[%clk 0:00:16.6]} 71... Kh6 {[%clk
0:00:29.4]} 72. Kh3 {[%clk 0:00:17.2]} 72... Be7 {[%clk 0:00:28.8]} 73. Kg4
{[%clk 0:00:16.9]} 73... Bd8 {[%clk 0:00:27.2]} 74. h5 {[%clk 0:00:17.1]} 74...
Bc7 {[%clk 0:00:24.7]} 75. Nd4 {[%clk 0:00:17]} 75... Bd6 {[%clk 0:00:23.1]} 76.
Nf5+ {[%clk 0:00:16.6]} 76... Kh7 {[%clk 0:00:23.8]} 77. Nxd6 {[%clk 0:00:17.5]}
77... Kh6 {[%clk 0:00:24.2]} 78. Nf5+ {[%clk 0:00:17.2]} 1-0

[Event "Early-Titled-Tuesday-Blitz-October-17-2023"]
[Site "Chess.com"]
[Date "2023.10.17"]
[Round "5"]
[White "Sokoloco"]
[Black "esrosenberg"]
[Result "1-0"]
[WhiteElo "2706"]
[BlackElo "2405"]
[TimeControl "180+1"]
[EndTime "8:59:12 PDT"]
[Termination "Sokoloco won by resignation"]

1. b3 {[%clk 0:03:00.9]} 1... d5 {[%clk 0:02:59.4]} 2. Bb2 {[%clk 0:03:01.8]}
2... c6 {[%clk 0:02:58.7]} 3. e3 {[%clk 0:03:01]} 3... Nf6 {[%clk 0:02:58.4]} 4.
d4 {[%clk 0:02:58.8]} 4... Bf5 {[%clk 0:02:56.8]} 5. Bd3 {[%clk 0:02:58.9]} 5...
e6 {[%clk 0:02:55.4]} 6. Nf3 {[%clk 0:02:59.2]} 6... Nbd7 {[%clk 0:02:54.4]} 7.
Ne5 {[%clk 0:02:59.8]} 7... Be7 {[%clk 0:02:46.1]} 8. Nd2 {[%clk 0:02:50.4]}
8... O-O {[%clk 0:02:43.6]} 9. O-O {[%clk 0:02:50.1]} 9... Bxd3 {[%clk
0:02:38.8]} 10. cxd3 {[%clk 0:02:47.9]} 10... Nxe5 {[%clk 0:02:34.3]} 11. dxe5
{[%clk 0:02:47.7]} 11... Nd7 {[%clk 0:02:35.2]} 12. f4 {[%clk 0:02:43.2]} 12...
Qb6 {[%clk 0:02:29.4]} 13. Qe2 {[%clk 0:02:38.3]} 13... f6 {[%clk 0:02:28.9]}
14. Nf3 {[%clk 0:02:29.4]} 14... fxe5 {[%clk 0:02:26.4]} 15. Nxe5 {[%clk
0:02:30.3]} 15... Nxe5 {[%clk 0:02:26.6]} 16. Bxe5 {[%clk 0:02:04.2]} 16... a5
{[%clk 0:02:25]} 17. Rab1 {[%clk 0:01:52.5]} 17... Rf7 {[%clk 0:02:24.4]} 18.
Bd4 {[%clk 0:01:42.3]} 18... Bc5 {[%clk 0:02:24]} 19. Bxc5 {[%clk 0:01:40.5]}
19... Qxc5 {[%clk 0:02:24.4]} 20. d4 {[%clk 0:01:41.2]} 20... Qa3 {[%clk
0:02:17.5]} 21. Rfc1 {[%clk 0:01:37]} 21... Raf8 {[%clk 0:02:15.4]} 22. Qd2
{[%clk 0:01:29.1]} 22... h6 {[%clk 0:01:59.1]} 23. Rc5 {[%clk 0:01:26]} 23...
Ra8 {[%clk 0:01:59.8]} 24. g3 {[%clk 0:01:00.6]} 24... Qb4 {[%clk 0:01:50.4]}
25. Qc3 {[%clk 0:00:52.2]} 25... Qxc3 {[%clk 0:01:28.8]} 26. Rxc3 {[%clk
0:00:53.1]} 26... Kh7 {[%clk 0:01:29.4]} 27. a4 {[%clk 0:00:49.6]} 27... Kg6
{[%clk 0:01:27.1]} 28. Kf2 {[%clk 0:00:50.2]} 28... Kf5 {[%clk 0:01:27.2]} 29.
Kf3 {[%clk 0:00:50.9]} 29... h5 {[%clk 0:01:27.4]} 30. h3 {[%clk 0:00:50.6]}
30... g5 {[%clk 0:01:27]} 31. g4+ {[%clk 0:00:44.3]} 31... Kg6 {[%clk
0:01:27.3]} 32. gxh5+ {[%clk 0:00:37.4]} 32... Kxh5 {[%clk 0:01:25.5]} 33. Rg1
{[%clk 0:00:38.3]} 33... gxf4 {[%clk 0:01:22]} 34. exf4 {[%clk 0:00:39.2]} 34...
Raf8 {[%clk 0:01:19.3]} 35. Rg4 {[%clk 0:00:38.6]} 35... Rf5 {[%clk 0:01:16.1]}
36. Re3 {[%clk 0:00:32.3]} 36... R8f6 {[%clk 0:01:13.1]} 37. Re1 {[%clk
0:00:32.5]} 37... Rg6 {[%clk 0:01:11.1]} 38. Rxg6 {[%clk 0:00:31.5]} 38... Kxg6
{[%clk 0:01:11.2]} 39. Rxe6+ {[%clk 0:00:32]} 39... Kf7 {[%clk 0:01:09.6]} 40.
Rh6 {[%clk 0:00:23.9]} 40... Kg7 {[%clk 0:01:07.6]} 41. Rd6 {[%clk 0:00:24.6]}
41... Rf7 {[%clk 0:01:04.3]} 42. h4 {[%clk 0:00:19.2]} 42... Re7 {[%clk
0:01:04.7]} 43. h5 {[%clk 0:00:19.8]} 43... Re4 {[%clk 0:00:59.4]} 44. Kg4
{[%clk 0:00:20.4]} 44... Rxd4 {[%clk 0:00:59]} 45. Kg5 {[%clk 0:00:21.1]} 45...
Rd3 {[%clk 0:00:58.7]} 46. Rd7+ {[%clk 0:00:21.6]} 46... Kg8 {[%clk 0:00:57.8]}
47. Rxb7 {[%clk 0:00:20.9]} 47... d4 {[%clk 0:00:52.2]} 48. f5 {[%clk
0:00:20.5]} 48... Rg3+ {[%clk 0:00:46.6]} 49. Kf6 {[%clk 0:00:20.2]} 49... d3
{[%clk 0:00:46.5]} 50. Rd7 {[%clk 0:00:18.6]} 50... c5 {[%clk 0:00:44.3]} 51. h6
{[%clk 0:00:18.3]} 51... Rh3 {[%clk 0:00:40.5]} 52. h7+ {[%clk 0:00:18.4]} 52...
Kh8 {[%clk 0:00:36]} 53. Kg5 {[%clk 0:00:13.3]} 53... Rg3+ {[%clk 0:00:31.7]}
54. Kf4 {[%clk 0:00:13.5]} 54... Rg7 {[%clk 0:00:29.3]} 55. Rxd3 {[%clk
0:00:11.9]} 55... Kxh7 {[%clk 0:00:29.9]} 56. Rc3 {[%clk 0:00:10.7]} 56... Rc7
{[%clk 0:00:28.3]} 57. Ke5 {[%clk 0:00:11.2]} 57... Kg7 {[%clk 0:00:27.8]} 58.
Kd6 {[%clk 0:00:11.9]} 58... Rb7 {[%clk 0:00:25.2]} 59. Rxc5 {[%clk 0:00:10.2]}
59... Rxb3 {[%clk 0:00:25.4]} 60. Rxa5 {[%clk 0:00:10.8]} 60... Kf6 {[%clk
0:00:25.6]} 61. Kc6 {[%clk 0:00:08.7]} 61... Ra3 {[%clk 0:00:20.7]} 62. Kb5
{[%clk 0:00:08.3]} 62... Ra1 {[%clk 0:00:20.9]} 63. Kb4 {[%clk 0:00:06.2]} 63...
Rb1+ {[%clk 0:00:21.3]} 64. Ka3 {[%clk 0:00:06.7]} 64... Ra1+ {[%clk 0:00:21.3]}
65. Kb3 {[%clk 0:00:07.3]} 65... Rb1+ {[%clk 0:00:21.5]} 66. Ka2 {[%clk
0:00:07.9]} 66... Rh1 {[%clk 0:00:17.7]} 67. Rd5 {[%clk 0:00:06.2]} 67... Rh2+
{[%clk 0:00:17.3]} 68. Kb3 {[%clk 0:00:06.3]} 68... Rh1 {[%clk 0:00:16.6]} 69.
a5 {[%clk 0:00:06.7]} 69... Rb1+ {[%clk 0:00:16.5]} 70. Kc4 {[%clk 0:00:06.7]}
70... Ra1 {[%clk 0:00:15.6]} 71. Kb5 {[%clk 0:00:07]} 71... Rb1+ {[%clk
0:00:15.7]} 72. Kc6 {[%clk 0:00:07.6]} 72... Ra1 {[%clk 0:00:15.1]} 73. Kb6
{[%clk 0:00:08.2]} 73... Rb1+ {[%clk 0:00:15.3]} 74. Rb5 {[%clk 0:00:08.8]}
74... Rd1 {[%clk 0:00:11.4]} 75. a6 {[%clk 0:00:09.1]} 75... Rd6+ {[%clk
0:00:10.8]} 76. Ka5 {[%clk 0:00:09.1]} 76... Rd1 {[%clk 0:00:10.6]} 77. a7
{[%clk 0:00:09.3]} 77... Ra1+ {[%clk 0:00:10.8]} 78. Kb6 {[%clk 0:00:09.9]} 1-0

[Event "Early-Titled-Tuesday-Blitz-October-17-2023"]
[Site "Chess.com"]
[Date "2023.10.17"]
[Round "5"]
[White "diamonds13"]
[Black "jeetjain"]
[Result "0-1"]
[WhiteElo "2285"]
[BlackElo "2570"]
[TimeControl "180+1"]
[EndTime "8:59:17 PDT"]
[Termination "jeetjain won on time"]

1. d4 {[%clk 0:02:59.3]} 1... c6 {[%clk 0:02:59.6]} 2. c4 {[%clk 0:02:59.5]}
2... g6 {[%clk 0:02:59.6]} 3. e4 {[%clk 0:02:58.2]} 3... Bg7 {[%clk 0:02:59]} 4.
Be3 {[%clk 0:02:57.8]} 4... d5 {[%clk 0:02:58.6]} 5. cxd5 {[%clk 0:02:56.8]}
5... cxd5 {[%clk 0:02:58.8]} 6. e5 {[%clk 0:02:57.1]} 6... Nc6 {[%clk
0:02:58.9]} 7. Bb5 {[%clk 0:02:56]} 7... Nh6 {[%clk 0:02:58.5]} 8. Bxh6 {[%clk
0:02:43.8]} 8... Bxh6 {[%clk 0:02:58.1]} 9. Nc3 {[%clk 0:02:44]} 9... O-O {[%clk
0:02:53.5]} 10. Nge2 {[%clk 0:02:41.9]} 10... a6 {[%clk 0:02:45.7]} 11. Bxc6
{[%clk 0:02:39.8]} 11... bxc6 {[%clk 0:02:46.6]} 12. f4 {[%clk 0:02:39.2]} 12...
f6 {[%clk 0:02:45.4]} 13. O-O {[%clk 0:02:38.6]} 13... a5 {[%clk 0:02:44.4]} 14.
Na4 {[%clk 0:02:29.1]} 14... Ba6 {[%clk 0:02:42.9]} 15. Nc5 {[%clk 0:02:28]}
15... Qc8 {[%clk 0:02:42]} 16. e6 {[%clk 0:02:25.2]} 16... f5 {[%clk 0:02:38.7]}
17. Nc1 {[%clk 0:02:21]} 17... Bg7 {[%clk 0:02:37.7]} 18. Rf2 {[%clk 0:02:18.8]}
18... Rb8 {[%clk 0:02:36.9]} 19. b3 {[%clk 0:02:11.6]} 19... Rb4 {[%clk
0:02:36.5]} 20. Rd2 {[%clk 0:02:10]} 20... Rf6 {[%clk 0:02:30.3]} 21. a3 {[%clk
0:02:08.1]} 21... Rb8 {[%clk 0:02:29.7]} 22. Qe1 {[%clk 0:02:05.4]} 22... Ra8
{[%clk 0:02:15.5]} 23. Na2 {[%clk 0:02:01]} 23... Rf8 {[%clk 0:02:14.6]} 24. Nc3
{[%clk 0:01:57.3]} 24... Rd8 {[%clk 0:02:13]} 25. b4 {[%clk 0:01:44]} 25... Qc7
{[%clk 0:02:10.2]} 26. g3 {[%clk 0:01:37.1]} 26... Bc4 {[%clk 0:02:10.4]} 27.
Rb1 {[%clk 0:01:00.3]} 27... axb4 {[%clk 0:02:08.9]} 28. axb4 {[%clk 0:01:00.2]}
28... Rdb8 {[%clk 0:02:08.4]} 29. Qc1 {[%clk 0:00:55.7]} 29... Ra7 {[%clk
0:02:07.9]} 30. h4 {[%clk 0:00:47.1]} 30... Rba8 {[%clk 0:02:07.7]} 31. h5
{[%clk 0:00:46]} 31... gxh5 {[%clk 0:02:06.3]} 32. Rh2 {[%clk 0:00:45.5]} 32...
Bxd4+ {[%clk 0:02:05.8]} 33. Kh1 {[%clk 0:00:41.5]} 33... Ra3 {[%clk 0:02:05.3]}
34. Qd1 {[%clk 0:00:34.2]} 34... Bg7 {[%clk 0:01:26.8]} 35. Qxh5 {[%clk
0:00:29.5]} 35... h6 {[%clk 0:01:26.8]} 36. Qf7+ {[%clk 0:00:18.4]} 36... Kh8
{[%clk 0:01:26.7]} 37. Qg6 {[%clk 0:00:18.6]} 37... Ra1 {[%clk 0:00:13.4]} 38.
Rxh6+ {[%clk 0:00:17.6]} 38... Bxh6 {[%clk 0:00:13.6]} 39. Qxh6+ {[%clk
0:00:17.6]} 39... Kg8 {[%clk 0:00:14.5]} 40. Qg6+ {[%clk 0:00:17.8]} 40... Kh8
{[%clk 0:00:15.1]} 41. Qh6+ {[%clk 0:00:17]} 41... Kg8 {[%clk 0:00:15.3]} 42.
Qg5+ {[%clk 0:00:16.9]} 42... Kh7 {[%clk 0:00:11.8]} 43. Qxf5+ {[%clk
0:00:16.7]} 43... Kg7 {[%clk 0:00:10.3]} 44. Qg5+ {[%clk 0:00:16.9]} 44... Kf8
{[%clk 0:00:10]} 45. Qh6+ {[%clk 0:00:15.8]} 45... Kg8 {[%clk 0:00:08.4]} 46.
Qg6+ {[%clk 0:00:16]} 46... Kh8 {[%clk 0:00:08.5]} 47. Qh6+ {[%clk 0:00:15.6]}
47... Kg8 {[%clk 0:00:08.7]} 48. Nd7 {[%clk 0:00:15.1]} 48... Rxb1+ {[%clk
0:00:08.3]} 49. Nxb1 {[%clk 0:00:15.1]} 49... Bd3 {[%clk 0:00:05.9]} 50. Qg5+
{[%clk 0:00:13.9]} 50... Kh7 {[%clk 0:00:06]} 51. Qxe7+ {[%clk 0:00:13.9]} 51...
Kh6 {[%clk 0:00:04.6]} 52. Qf6+ {[%clk 0:00:13.8]} 52... Kh7 {[%clk 0:00:04.7]}
53. Qf7+ {[%clk 0:00:13.9]} 53... Kh6 {[%clk 0:00:04.6]} 54. Qf6+ {[%clk
0:00:13.4]} 54... Kh7 {[%clk 0:00:04.5]} 55. Qh4+ {[%clk 0:00:12.5]} 55... Kg7
{[%clk 0:00:03.7]} 56. Qg5+ {[%clk 0:00:11.9]} 56... Kh7 {[%clk 0:00:01.9]} 57.
Nf6+ {[%clk 0:00:10.7]} 57... Kh8 {[%clk 0:00:02]} 58. Qh6+ {[%clk 0:00:10.6]}
58... Bh7 {[%clk 0:00:02.3]} 59. g4 {[%clk 0:00:03.9]} 59... Qg7 {[%clk
0:00:02.2]} 60. Qxg7+ {[%clk 0:00:02.8]} 60... Kxg7 {[%clk 0:00:03.1]} 61. Nxh7
{[%clk 0:00:01.2]} 61... Kxh7 {[%clk 0:00:04]} 0-1